[Event "GER-chT Youth Countries 2018"]
[Site "Wurzburg"]
[Date "2018.10.05"]
[Round "4"]
[White "Braeutigam, Katerina"]
[Black "Bashylina, Luisa"]
[Result "0-1"]
[ECO "A36"]
[WhiteElo "1696"]
[BlackElo "1837"]
[Annotator "NA"]
[PlyCount "110"]
[EventDate "2018.10.03"]
[EventType "team-tourn"]
[EventCountry "GER"]
[SourceTitle "playchess.com"]
[Source "ChessBase"]
[SourceQuality "1"]
[TimeControl "40/5400+30:1800+30"]

1. c4 {[%emt 0:00:00]} c5 {[%emt 0:00:00]} 2. g3 {[%emt 0:00:00]} Nc6 {[%emt 0:00:09]} 3. Nc3 {[%emt 0:00:03]} g6 {[%emt 0:00:03]} 4. Nf3 {[%emt 0:00:26]} Bg7 {[%emt 0:00:07]} 5. d3 {[%emt 0:03:01]} e5 {[%emt 0:00:42] LiveBook: 48 Games} 6. Rb1 {[%emt 0:07:23]} Nge7 {[%emt 0:01:15]} 7. a3 {[%emt 0:01:45]} a5 $11 {[%emt 0:04:11]} 8. Bg2 {[%emt 0:11:46]} O-O {[%emt 0:00:59]} 9. O-O {[%emt 0:00:23]} d6 {[%emt 0:00:22]} 10. e3 {[%emt 0:05:19]} f5 {[%emt 0:04:08]} 11. Re1 {[%emt 0:02:24]} h6 {[%emt 0:01:07]} 12. Bf1 {[%emt 0:01:23]} g5 {[%emt 0:03:30]} 13. Be2 {[%emt 0:06:20]} Be6 {[%emt 0:03:32]} 14. Kg2 {[%emt 0:05:10]} Ng6 {[%emt 0:03:46]} 15. Qb3 {[%emt 0:10:35]} Qc7 {[%emt 0:04:56]} 16. Nb5 {[%emt 0:01:03]} Qd7 {[%emt 0:00:44]} 17. Qd1 {[%emt 0:07:21]} d5 {[%emt 0:08:10]} 18. Nc3 {[%emt 0:06:32]} Nce7 {[%emt 0:06:18]} 19. Qa4 {[%emt 0:02:50]} Qc7 {[%emt 0:05:06]} 20. Qb3 {[%emt 0:03:30]} dxc4 {[%emt 0:01:22]} 21. dxc4 {[%emt 0:00:18]} e4 {[%emt 0:00:36]} 22. Nd2 {[%emt 0:02:38]} Ne5 {[%emt 0:00:55]} 23. Qc2 {[%emt 0:02:56]} N7c6 {[%emt 0:01:49]} 24. Nb5 {[%emt 0:02:37]} Qe7 {[%emt 0:02:24]} 25. b3 {[%emt 0:02:16]} Rad8 {[%emt 0:06:13]} 26. Rd1 {[%emt 0:04:26]} Nd3 {[%emt 0:02:45]} 27. Nf1 {[%emt 0:01:44]} Nce5 {[%emt 0:01:06]} 28. Bd2 {[%emt 0:01:13]} a4 {[%emt 0:01:03]} 29. b4 {[%emt 0:04:45]} Bxc4 {[%emt 0:00:30]} 30. bxc5 {[%emt 0:01:55]} Bb3 {[%emt 0:04:09]} 31. Rxb3 {[%emt 0:00:51]} axb3 {[%emt 0:00:12]} 32. Qxb3+ {[%emt 0:00:12]} Kh8 {[%emt 0:00:46]} 33. Nd4 {[%emt 0:01:00]} Rf6 {[%emt 0:01:51]} 34. Bb4 {[%emt 0:01:24]} Nxb4 {[%emt 0:00:36]} 35. axb4 {[%emt 0:00:09]} Nc6 {[%emt 0:02:41]} 36. Bc4 {[%emt 0:00:30]} Nxd4 {[%emt 0:00:18]} 37. exd4 {[%emt 0:00:03]} f4 {[%emt 0:00:31]} 38. g4 {[%emt 0:01:01]} f3+ {[%emt 0:00:47]} 39. Kg1 {[%emt 0:00:06]} Rf4 {[%emt 0:00:12]} 40. Ne3 {[%emt 0:00:55]} Bxd4 {[%emt 0:03:11]} 41. Nf5 {[%emt 0:30:21]} Rxg4+ {[%emt 0:30:20]} 42. Kf1 {[%emt 0:00:20]} Qf6 {[%emt 0:00:30]} 43. Be6 {[%emt 0:01:55]} Rg2 {[%emt 0:00:51]} 44. Rd2 {[%emt 0:00:00]} Bxf2 {[%emt 0:00:00]} 45. Rxd8+ {[%emt 0:00:00]} Qxd8 {[%emt 0:00:00]} 46. Qc3+ {[%emt 0:00:00]} Bd4 {[%emt 0:00:00]} 47. Nxd4 {[%emt 0:00:00]} Qf6 {[%emt 0:00:00]} 48. Bd5 {[%emt 0:00:00]} f2 {[%emt 0:00:00]} 49. Ne2 {[%emt 0:00:00]} Rg1+ {[%emt 0:00:00]} 50. Nxg1 {[%emt 0:00:00]} Qxc3 {[%emt 0:00:00]} 51. Kxf2 {[%emt 0:00:00]} Qd2+ {[%emt 0:00:00]} 52. Ne2 {[%emt 0:00:00]} Qxd5 {[%emt 0:00:00]} 53. Ng3 {[%emt 0:00:00]} Qd2+ {[%emt 0:00:00]} 54. Ne2 {[%emt 0:00:00]} e3+ {[%emt 0:00:00]} 55. Kf3 {[%emt 0:00:00]} g4+ {[%emt 0:00:00]} 0-1

[Event "GER-chT Youth Countries 2018"]
[Site "Wurzburg"]
[Date "2018.10.05"]
[Round "4"]
[White "Haenselmann, Hendrik"]
[Black "Liu, Sijia Anna"]
[Result "1/2-1/2"]
[ECO "B90"]
[WhiteElo "1660"]
[BlackElo "1730"]
[Annotator "NA"]
[PlyCount "98"]
[EventDate "2018.10.03"]
[EventType "team-tourn"]
[EventCountry "GER"]
[SourceTitle "playchess.com"]
[Source "ChessBase"]
[SourceQuality "1"]
[TimeControl "40/5400+30:1800+30"]

1. e4 {[%emt 0:00:00]} c5 {[%emt 0:00:00]} 2. Nf3 {[%emt 0:00:00]} d6 {[%emt 0:00:00]} 3. d4 {[%emt 0:00:00]} cxd4 {[%emt 0:00:00]} 4. Nxd4 {[%emt 0:00:00]} Nf6 {[%emt 0:00:00]} 5. Nc3 {[%emt 0:00:00]} a6 {[%emt 0:00:07]} 6. a4 {[%emt 0:00:00]} e6 {[%emt 0:00:13]} 7. Be2 {[%emt 0:00:00]} Be7 {[%emt 0:00:19]} 8. O-O {[%emt 0:00:14]} O-O {[%emt 0:00:45]} 9. Be3 {[%emt 0:00:12]} Nc6 {[%emt 0:00:24]} 10. f4 {[%emt 0:00:37]} Qc7 {[%emt 0:01:20]} 11. Qe1 {[%emt 0:00:41]} Re8 {[%emt 0:01:18]} 12. Qg3 {[%emt 0:01:52]} d5 {[%emt 0:03:33]} 13. e5 {[%emt 0:03:48]} Ne4 {[%emt 0:01:25]} 14. Nxe4 {[%emt 0:00:32]} dxe4 {[%emt 0:00:05]} 15. f5 {[%emt 0:10:08]} Nxd4 {[%emt 0:02:16]} 16. Bxd4 {[%emt 0:01:04]} exf5 {[%emt 0:00:56]} 17. c3 {[%emt 0:01:23]} Be6 {[%emt 0:05:15]} 18. b4 {[%emt 0:03:09]} a5 {[%emt 0:03:13]} 19. b5 {[%emt 0:01:12]} Bc5 {[%emt 0:02:18]} 20. Kh1 {[%emt 0:03:20]} Rad8 {[%emt 0:04:10]} 21. Rfd1 {[%emt 0:03:40]} Qb6 {[%emt 0:09:59]} 22. Bxc5 {[%emt 0:01:20]} Qxc5 {[%emt 0:00:18]} 23. Rd6 {[%emt 0:02:21]} Rxd6 {[%emt 0:04:03]} 24. exd6 Rd8 {[%emt 0:03:51]} 25. Rd1 {[%emt 0:01:01]} Bb3 {[%emt 0:00:52]} 26. Rd2 {[%emt 0:01:04]} Qa3 {[%emt 0:02:10]} 27. Qe1 {[%emt 0:01:18]} Rxd6 {[%emt 0:00:43]} 28. Rxd6 {[%emt 0:00:26]} Qxd6 {[%emt 0:00:03]} 29. c4 {[%emt 0:00:55]} Qb4 {[%emt 0:01:10]} 30. Qg3 {[%emt 0:00:50]} Bxa4 {[%emt 0:02:31]} 31. Qb8+ {[%emt 0:00:45]} Qf8 {[%emt 0:00:05]} 32. Qxb7 {[%emt 0:00:21]} Qd8 {[%emt 0:02:05]} 33. Qd5 {[%emt 0:05:40]} Qc8 {[%emt 0:04:09]} 34. b6 {[%emt 0:03:18]} Bc6 {[%emt 0:04:34]} 35. Qxa5 {[%emt 0:02:10]} Qb7 {[%emt 0:01:18]} 36. Qxf5 {[%emt 0:06:15]} g6 {[%emt 0:03:21]} 37. Qf2 {[%emt 0:11:37]} Qd7 {[%emt 0:07:23]} 38. Qe3 {[%emt 0:04:44]} f5 {[%emt 0:04:20]} 39. c5 {[%emt 0:04:11]} Qg7 {[%emt 0:04:52]} 40. h3 {[%emt 0:05:32]} Qe5 {[%emt 0:03:16]} 41. Qb3+ {[%emt 0:37:44]} Bd5 {[%emt 0:34:29]} 42. Bc4 {[%emt 0:02:55]} Bxc4 {[%emt 0:02:33]} 43. Qxc4+ {[%emt 0:00:18]} Kg7 {[%emt 0:00:40]} 44. c6 {[%emt 0:02:21]} Qa1+ {[%emt 0:01:08]} 45. Kh2 {[%emt 0:00:07]} Qe5+ {[%emt 0:00:22]} 46. Kh1 {[%emt 0:00:59]} e3 {[%emt 0:02:01]} 47. Qe2 {[%emt 0:01:38]} Qa1+ {[%emt 0:03:32]} 48. Kh2 {[%emt 0:00:22]} Qe5+ {[%emt 0:00:23]} 49. Kh1 {[%emt 0:01:34]} Qa1+ {[%emt 0:02:59]} 1/2-1/2

[Event "GER-chT Youth Countries 2018"]
[Site "Wurzburg"]
[Date "2018.10.05"]
[Round "4"]
[White "Wagner, Margarethe"]
[Black "Weimert, Miriam"]
[Result "1/2-1/2"]
[ECO "B28"]
[WhiteElo "1643"]
[BlackElo "1776"]
[Annotator "NA"]
[PlyCount "81"]
[EventDate "2018.10.03"]
[EventType "team-tourn"]
[EventCountry "GER"]
[SourceTitle "playchess.com"]
[Source "ChessBase"]
[SourceQuality "1"]
[TimeControl "40/5400+30:1800+30"]

1. e4 {[%emt 0:00:00]} c5 {[%emt 0:00:00]} 2. Nf3 {[%emt 0:00:00]} a6 {[%emt 0:00:00]} 3. d4 {[%emt 0:00:12]} cxd4 {[%emt 0:00:51]} 4. Nxd4 {[%emt 0:00:09]} Nf6 {[%emt 0:01:01]} 5. Nc3 {[%emt 0:01:03]} e5 {[%emt 0:02:10]} 6. Nb3 {[%emt 0:06:39]} Bb4 {[%emt 0:02:53]} 7. Bd3 {[%emt 0:10:51]} d5 {[%emt 0:07:29]} 8. Bd2 {[%emt 0:02:20]} Bxc3 {[%emt 0:05:37]} 9. Bxc3 {[%emt 0:00:16]} dxe4 {[%emt 0:00:28]} 10. Be2 {[%emt 0:02:19]} Qe7 {[%emt 0:02:24]} 11. Qd2 {[%emt 0:02:47]} Nc6 {[%emt 0:03:02]} 12. O-O {[%emt 0:01:52]} O-O {[%emt 0:00:55]} 13. a3 {[%emt 0:03:46]} Rd8 {[%emt 0:03:47]} 14. Qe3 {[%emt 0:01:03]} Bf5 {[%emt 0:13:37]} 15. Qc5 {[%emt 0:08:39]} Qe8 {[%emt 0:04:22]} 16. Rad1 {[%emt 0:01:42]} Rxd1 {[%emt 0:02:08]} 17. Rxd1 {[%emt 0:00:17]} e3 {[%emt 0:01:17]} 18. Bd3 {[%emt 0:07:59]} exf2+ {[%emt 0:13:02]} 19. Qxf2 {[%emt 0:01:29]} Bxd3 {[%emt 0:00:15]} 20. cxd3 {[%emt 0:00:30]} Nd5 {[%emt 0:04:37]} 21. Bd2 {[%emt 0:03:11]} f6 {[%emt 0:06:22]} 22. Nc5 {[%emt 0:03:25]} Nd4 {[%emt 0:08:20]} 23. b4 {[%emt 0:06:19]} b6 {[%emt 0:02:57]} 24. Ne4 {[%emt 0:01:20]} Qa4 {[%emt 0:00:14]} 25. Rc1 {[%emt 0:02:37]} Qxa3 {[%emt 0:00:46]} 26. Qf1 {[%emt 0:04:27]} f5 {[%emt 0:03:59]} 27. Nd6 {[%emt 0:02:18]} Qa2 {[%emt 0:01:45]} 28. Rd1 {[%emt 0:03:32]} b5 {[%emt 0:01:01]} 29. Qe1 {[%emt 0:02:22]} Qc2 {[%emt 0:01:09]} 30. Rc1 {[%emt 0:04:11]} Qxd3 {[%emt 0:01:42]} 31. Qxe5 {[%emt 0:03:28]} Ne2+ {[%emt 0:00:44]} 32. Kh1 {[%emt 0:01:45]} h6 {[%emt 0:00:36]} 33. Nxf5 {[%emt 0:01:57]} Nf6 {[%emt 0:00:25]} 34. Nxh6+ Kh7 {[%emt 0:01:53]} 35. Rd1 {[%emt 0:07:40]} Re8 {[%emt 0:01:11]} 36. Qf5+ {[%emt 0:00:20]} Qxf5 {[%emt 0:00:01]} 37. Nxf5 {[%emt 0:00:01]} g6 {[%emt 0:01:37]} 38. Ne3 {[%emt 0:02:29]} Ne4 {[%emt 0:01:00]} 39. Be1 {[%emt 0:00:12]} Rf8 {[%emt 0:02:11]} 40. Rd7+ {[%emt 0:01:35]} Kh6 {[%emt 0:00:20]} 41. h3 {[%emt 0:31:42]} 1/2-1/2

[Event "GER-chT Youth Countries 2018"]
[Site "Wurzburg"]
[Date "2018.10.05"]
[Round "4"]
[White "Weidenhoefer, Max"]
[Black "Grunert, Wilhelm"]
[Result "0-1"]
[ECO "B33"]
[WhiteElo "1596"]
[BlackElo "1659"]
[Annotator "NA"]
[PlyCount "74"]
[EventDate "2018.10.03"]
[EventType "team-tourn"]
[EventCountry "GER"]
[SourceTitle "playchess.com"]
[Source "ChessBase"]
[SourceQuality "1"]
[TimeControl "40/5400+30:1800+30"]

1. e4 {[%emt 0:00:00]} c5 {[%emt 0:00:00]} 2. Nf3 {[%emt 0:00:00]} Nc6 {[%emt 0:00:00]} 3. d4 {[%emt 0:00:00]} cxd4 {[%emt 0:00:00]} 4. Nxd4 {[%emt 0:00:00]} Nf6 {[%emt 0:00:08]} 5. Nc3 {[%emt 0:00:00]} e5 {[%emt 0:00:13]} 6. Ndb5 {[%emt 0:00:00]} d6 {[%emt 0:00:12]} 7. Bg5 {[%emt 0:00:12]} a6 {[%emt 0:00:11]} 8. Na3 {[%emt 0:00:08]} b5 {[%emt 0:00:33]} 9. Nd5 {[%emt 0:00:08]} Be7 {[%emt 0:00:15]} 10. Bxf6 {[%emt 0:00:19]} Bxf6 {[%emt 0:00:07]} 11. c3 {[%emt 0:00:09]} Bg5 {[%emt 0:00:13]} 12. Nc2 {[%emt 0:00:13]} O-O {[%emt 0:00:52]} 13. a4 {[%emt 0:00:10]} Rb8 {[%emt 0:00:50]} 14. axb5 {[%emt 0:00:13]} axb5 {[%emt 0:00:10]} 15. Bd3 {[%emt 0:00:07]} Ne7 {[%emt 0:00:41]} 16. Ncb4 {[%emt 0:05:58]} Nxd5 {[%emt 0:03:02]} 17. Nxd5 {[%emt 0:03:09]} Be6 {[%emt 0:00:19]} 18. Nb4 {[%emt 0:03:16]} Qd7 {[%emt 0:01:09]} 19. h4 {[%emt 0:02:08]} Bh6 {[%emt 0:01:05]} 20. g3 {[%emt 0:00:16]} Kh8 {[%emt 0:00:38]} 21. O-O {[%emt 0:00:37]} f5 {[%emt 0:02:04]} 22. Qe2 {[%emt 0:04:34]} f4 {[%emt 0:00:40]} 23. Rfb1 {[%emt 0:05:58]} f3 {[%emt 0:00:28]} 24. Qd1 {[%emt 0:00:20]} g5 {[%emt 0:01:54]} 25. h5 {[%emt 0:23:12]} Qe8 {[%emt 0:03:52]} 26. g4 {[%emt 0:04:56]} Rf4 {[%emt 0:00:59]} 27. Kf1 {[%emt 0:02:16]} Rxg4 {[%emt 0:02:16]} 28. Qxf3 {[%emt 0:00:59]} Rf4 {[%emt 0:00:08]} 29. Qg2 {[%emt 0:04:01]} Qxh5 {[%emt 0:01:50]} 30. Be2 {[%emt 0:03:53]} Bg4 {[%emt 0:00:46]} 31. Bd1 {[%emt 0:02:11]} Rbf8 {[%emt 0:00:19]} 32. Nd3 {[%emt 0:00:43]} Bf3 {[%emt 0:01:33]} 33. Bxf3 {[%emt 0:01:41]} Rxf3 {[%emt 0:00:14]} 34. Rd1 {[%emt 0:01:10]} g4 {[%emt 0:01:19]} 35. Ke1 {[%emt 0:02:08]} Rh3 {[%emt 0:00:22]} 36. Ke2 {[%emt 0:09:52]} g3+ {[%emt 0:00:14]} 37. f3 {[%emt 0:00:07]} Rh2 {[%emt 0:00:05]} 0-1

[Event "GER-chT Youth Countries 2018"]
[Site "Wurzburg"]
[Date "2018.10.05"]
[Round "4"]
[White "Grining, Maria"]
[Black "Butenandt, Svenja"]
[Result "0-1"]
[ECO "A46"]
[WhiteElo "1572"]
[BlackElo "1762"]
[Annotator "NA"]
[PlyCount "63"]
[EventDate "2018.10.03"]
[EventType "team-tourn"]
[EventCountry "GER"]
[SourceTitle "playchess.com"]
[Source "ChessBase"]
[SourceQuality "1"]
[TimeControl "40/5400+30:1800+30"]

1. d4 {[%emt 0:00:00]} Nf6 {[%emt 0:00:00]} 2. Nf3 {[%emt 0:00:00]} e6 {[%emt 0:00:00]} 3. c4 {[%emt 0:00:00]} d5 {[%emt 0:00:00]} 4. e3 {[%emt 0:00:01]} c6 {[%emt 0:00:15]} 5. Be2 {[%emt 0:01:31]} Be7 {[%emt 0:00:22]} 6. O-O {[%emt 0:00:20]} O-O {[%emt 0:00:08]} 7. b3 {[%emt 0:00:59]} Nbd7 {[%emt 0:03:00]} 8. Bb2 {[%emt 0:00:38]} Nb6 {[%emt 0:03:40]} 9. Qc2 {[%emt 0:04:09]} Re8 {[%emt 0:03:02]} 10. Nbd2 {[%emt 0:05:28]} a5 {[%emt 0:07:48]} 11. e4 {[%emt 0:16:40]} dxe4 {[%emt 0:05:21]} 12. Nxe4 {[%emt 0:00:36]} Nxe4 {[%emt 0:04:51]} 13. Qxe4 {[%emt 0:00:03]} Bf6 {[%emt 0:00:17]} 14. Bd3 {[%emt 0:06:24]} g6 {[%emt 0:01:43]} 15. h4 {[%emt 0:04:55]} c5 {[%emt 0:08:30]} 16. h5 {[%emt 0:06:41]} cxd4 {[%emt 0:01:41]} 17. hxg6 {[%emt 0:01:04]} hxg6 {[%emt 0:00:31]} 18. Ne5 {[%emt 0:16:53]} Nd7 {[%emt 0:12:21]} 19. Nxf7 {[%emt 0:02:02]} Kxf7 {[%emt 0:00:17]} 20. Qxg6+ {[%emt 0:00:13]} Kf8 {[%emt 0:00:45]} 21. Ba3+ {[%emt 0:00:45]} Re7 {[%emt 0:00:50]} 22. Rfe1 {[%emt 0:10:07]} Ra6 {[%emt 0:04:08]} 23. Re2 {[%emt 0:07:08]} Qe8 {[%emt 0:05:22]} 24. Qxe8+ {[%emt 0:04:09]} Kxe8 {[%emt 0:00:11]} 25. Bxe7 {[%emt 0:00:04]} Kxe7 {[%emt 0:00:27]} 26. Rd1 {[%emt 0:03:21]} Nc5 {[%emt 0:01:59]} 27. Bc2 {[%emt 0:01:07]} Rd6 {[%emt 0:01:06]} 28. Bd3 {[%emt 0:06:50]} b6 {[%emt 0:04:14]} 29. Be4 {[%emt 0:01:41]} a4 {[%emt 0:03:15]} 30. b4 {[%emt 0:00:26]} Nxe4 {[%emt 0:00:13]} 31. Rxe4 {[%emt 0:00:10]} Rc6 {[%emt 0:01:13]} 32. Rexd4 0-1

[Event "GER-chT Youth Countries 2018"]
[Site "Wurzburg"]
[Date "2018.10.05"]
[Round "4"]
[White "Roncea, Andrea-Alexandra"]
[Black "Werner, Rosalie"]
[Result "1/2-1/2"]
[ECO "D05"]
[WhiteElo "1515"]
[BlackElo "1566"]
[Annotator "NA"]
[PlyCount "70"]
[EventDate "2018.10.03"]
[EventType "team-tourn"]
[EventCountry "GER"]
[SourceTitle "playchess.com"]
[Source "ChessBase"]
[SourceQuality "1"]
[TimeControl "40/5400+30:1800+30"]

1. d4 {[%emt 0:00:00]} d5 {[%emt 0:00:00]} 2. Nf3 {[%emt 0:00:00]} e6 {[%emt 0:00:00]} 3. e3 {[%emt 0:00:00]} Nf6 {[%emt 0:00:00]} 4. Be2 {[%emt 0:00:04]} c5 {[%emt 0:01:20]} 5. O-O {[%emt 0:00:17]} Nc6 {[%emt 0:01:12]} 6. b3 {[%emt 0:02:56]} Bd6 {[%emt 0:03:33]} 7. Bb2 {[%emt 0:01:00]} O-O {[%emt 0:00:18]} 8. Nbd2 {[%emt 0:01:40]} b6 {[%emt 0:04:09]} 9. c4 {[%emt 0:01:20]} Bb7 {[%emt 0:03:32]} 10. Rc1 {[%emt 0:03:45]} Rc8 {[%emt 0:02:27]} 11. Ne5 {[%emt 0:05:42]} Qc7 {[%emt 0:12:04]} 12. Ndf3 {[%emt 0:04:17]} Ne4 {[%emt 0:06:25]} 13. Nxc6 {[%emt 0:03:13]} Bxc6 {[%emt 0:08:23]} 14. Ne5 {[%emt 0:03:25]} Bb7 {[%emt 0:13:50]} 15. f3 {[%emt 0:05:14]} Nf6 {[%emt 0:01:48]} 16. f4 {[%emt 0:03:09]} Nd7 {[%emt 0:11:33]} 17. Bf3 {[%emt 0:06:48]} Rfd8 {[%emt 0:07:39]} 18. Qe1 {[%emt 0:10:22]} Nxe5 {[%emt 0:01:41]} 19. fxe5 {[%emt 0:05:24]} Bf8 {[%emt 0:00:57]} 20. cxd5 {[%emt 0:06:59]} Bxd5 {[%emt 0:02:47]} 21. Rc2 {[%emt 0:02:55]} Qb7 {[%emt 0:01:37]} 22. Rcf2 {[%emt 0:03:08]} Rc7 {[%emt 0:00:48]} 23. Qe2 {[%emt 0:10:23]} Bxf3 {[%emt 0:00:31]} 24. Rxf3 {[%emt 0:00:31]} Rdd7 {[%emt 0:00:14]} 25. Rh3 {[%emt 0:00:54]} g6 {[%emt 0:00:39]} 26. Qf2 {[%emt 0:01:29]} Bg7 {[%emt 0:00:25]} 27. Qh4 {[%emt 0:03:48]} h6 {[%emt 0:00:15]} 28. Qf2 {[%emt 0:00:39]} Qe4 {[%emt 0:01:33]} 29. Qf3 {[%emt 0:02:10]} Qxf3 {[%emt 0:00:39]} 30. Rhxf3 {[%emt 0:00:18]} cxd4 {[%emt 0:00:37]} 31. exd4 {[%emt 0:00:47]} Rc2 {[%emt 0:01:13]} 32. R3f2 {[%emt 0:00:18]} Rcc7 {[%emt 0:01:11]} 33. Rf3 {[%emt 0:00:28]} Rc2 {[%emt 0:00:10]} 34. R3f2 {[%emt 0:00:11]} Rcc7 {[%emt 0:00:24]} 35. Rf3 {[%emt 0:00:55]} Rc2 {[%emt 0:01:59]} 1/2-1/2

[Event "GER-chT Youth Countries 2018"]
[Site "Wurzburg"]
[Date "2018.10.05"]
[Round "4"]
[White "Schwegler, Jelena"]
[Black "Boehm, Jana"]
[Result "0-1"]
[ECO "C12"]
[WhiteElo "1496"]
[BlackElo "2001"]
[Annotator "NA"]
[PlyCount "40"]
[EventDate "2018.10.03"]
[EventType "team-tourn"]
[EventCountry "GER"]
[SourceTitle "playchess.com"]
[Source "ChessBase"]
[SourceQuality "1"]
[TimeControl "40/5400+30:1800+30"]

1. e4 {[%emt 0:00:00]} e6 {[%emt 0:00:00]} 2. d4 {[%emt 0:00:00]} d5 {[%emt 0:00:00]} 3. Nc3 {[%emt 0:00:00]} Nf6 {[%emt 0:00:00]} 4. Bg5 {[%emt 0:00:06]} Bb4 {[%emt 0:00:12]} 5. exd5 {[%emt 0:08:09]} Qxd5 {[%emt 0:02:04] LiveBook: 271 Partien} 6. Bxf6 {[%emt 0:08:32]} gxf6 $11 {[%emt 0:00:17]} 7. Qd2 {[%emt 0:01:14]} Qa5 {[%emt 0:08:08]} 8. Nge2 {[%emt 0:09:10]} Bd7 {[%emt 0:04:37]} 9. a3 {[%emt 0:04:39]} Nc6 {[%emt 0:05:47]} 10. O-O-O {[%emt 0:08:00]} Be7 {[%emt 0:03:01]} 11. d5 {[%emt 0:05:37]} Ne5 {[%emt 0:01:16]} 12. Nf4 {[%emt 0:03:09]} O-O-O {[%emt 0:02:52]} 13. Ne4 {[%emt 0:08:21]} Qxd2+ {[%emt 0:02:11]} 14. Rxd2 {[%emt 0:13:12]} f5 {[%emt 0:01:53]} 15. d6 {[%emt 0:00:30]} Bf8 {[%emt 0:01:18]} 16. dxc7 {[%emt 0:05:17]} Kxc7 {[%emt 0:00:06]} 17. Nf6 {[%emt 0:01:07]} Bh6 {[%emt 0:02:27]} 18. g3 {[%emt 0:05:09]} Bc6 {[%emt 0:01:35]} 19. Rxd8 {[%emt 0:02:54]} Rxd8 {[%emt 0:00:07]} 20. Rg1 {[%emt 0:01:04]} Nf3 {[%emt 0:01:11]} 0-1

[Event "GER-chT Youth Countries 2018"]
[Site "Wurzburg"]
[Date "2018.10.05"]
[Round "4"]
[White "Keymer, Cecilia"]
[Black "Schwenke, Mia"]
[Result "1-0"]
[ECO "E67"]
[WhiteElo "1479"]
[BlackElo "1203"]
[Annotator "NA"]
[PlyCount "99"]
[EventDate "2018.10.03"]
[EventType "team-tourn"]
[EventCountry "GER"]
[SourceTitle "playchess.com"]
[Source "ChessBase"]
[SourceQuality "1"]
[TimeControl "40/5400+30:1800+30"]

1. d4 {[%emt 0:00:00]} Nf6 {[%emt 0:00:00]} 2. c4 {[%emt 0:00:00]} g6 {[%emt 0:00:00]} 3. g3 {[%emt 0:00:00]} Bg7 {[%emt 0:00:00]} 4. Bg2 {[%emt 0:00:06]} O-O {[%emt 0:00:15]} 5. Nc3 {[%emt 0:00:27]} d6 {[%emt 0:00:28]} 6. Nf3 {[%emt 0:00:26]} Nbd7 {[%emt 0:00:23]} 7. O-O {[%emt 0:02:11]} e5 {[%emt 0:00:30]} 8. dxe5 {[%emt 0:03:43]} dxe5 {[%emt 0:00:14]} 9. Qc2 {[%emt 0:03:04]} Re8 {[%emt 0:01:56]} 10. e4 {[%emt 0:06:13]} a5 {[%emt 0:04:27]} 11. Rd1 {[%emt 0:05:25]} c6 {[%emt 0:04:46]} 12. h3 {[%emt 0:08:57]} Qb6 {[%emt 0:05:22]} 13. Be3 {[%emt 0:03:55]} c5 {[%emt 0:02:50]} 14. Nb5 {[%emt 0:07:12]} Re6 {[%emt 0:05:21]} 15. Rd2 {[%emt 0:04:49]} Qc6 {[%emt 0:07:13]} 16. Ng5 {[%emt 0:01:35]} Ne8 {[%emt 0:07:46]} 17. Nxe6 {[%emt 0:01:28]} Qxe6 {[%emt 0:00:45]} 18. Rad1 {[%emt 0:01:58]} Bf8 {[%emt 0:07:03]} 19. Rd3 {[%emt 0:05:52]} Ra6 {[%emt 0:13:13]} 20. b3 {[%emt 0:01:26]} Kh8 {[%emt 0:11:10]} 21. Qd2 {[%emt 0:03:27]} Ndf6 {[%emt 0:07:41]} 22. Bg5 {[%emt 0:03:15]} Ng8 {[%emt 0:03:10]} 23. Rd8 {[%emt 0:02:38]} Rc6 {[%emt 0:03:33]} 24. Na7 {[%emt 0:03:20]} Rc7 {[%emt 0:01:15]} 25. Rxc8 {[%emt 0:02:06]} Rxc8 {[%emt 0:01:10]} 26. Nxc8 {[%emt 0:00:06]} Qxc8 {[%emt 0:00:08]} 27. Qxa5 {[%emt 0:00:52]} f6 {[%emt 0:01:12]} 28. Be3 {[%emt 0:02:07]} Bd6 {[%emt 0:01:00]} 29. Qb6 {[%emt 0:02:01]} Qb8 {[%emt 0:00:49]} 30. Bxc5 {[%emt 0:01:03]} Bc7 {[%emt 0:02:10]} 31. Qb4 {[%emt 0:02:03]} b6 {[%emt 0:01:22]} 32. Be3 {[%emt 0:01:03]} h5 {[%emt 0:02:37]} 33. c5 {[%emt 0:01:12]} b5 {[%emt 0:01:01]} 34. Bf1 {[%emt 0:01:59]} Qa8 {[%emt 0:01:01]} 35. Ra1 {[%emt 0:00:49]} f5 {[%emt 0:00:21]} 36. exf5 {[%emt 0:01:39]} gxf5 {[%emt 0:00:17]} 37. Bg2 {[%emt 0:00:48]} e4 {[%emt 0:00:26]} 38. Qd4+ {[%emt 0:00:20]} Ngf6 {[%emt 0:00:32]} 39. Bg5 {[%emt 0:01:03]} Bd8 {[%emt 0:00:30]} 40. Bf1 {[%emt 0:01:22]} Kg8 {[%emt 0:01:07]} 41. Bxb5 {[%emt 0:31:31]} Nc7 {[%emt 0:30:53]} 42. Bc4+ {[%emt 0:00:57]} Kh8 {[%emt 0:00:57]} 43. Bxf6+ {[%emt 0:00:18]} Bxf6 {[%emt 0:00:45]} 44. Qxf6+ {[%emt 0:00:04]} Kh7 {[%emt 0:00:17]} 45. Qe7+ {[%emt 0:00:37]} Kg6 {[%emt 0:00:15]} 46. Qxc7 {[%emt 0:00:35]} Qh8 {[%emt 0:00:40]} 47. Rd1 {[%emt 0:00:44]} Qb2 {[%emt 0:00:41]} 48. Rd6+ {[%emt 0:00:10]} Kg5 {[%emt 0:00:16]} 49. Qe7+ {[%emt 0:00:24]} Qf6 {[%emt 0:00:32]} 50. Qxf6# 1-0